fUST/lending_fUST_20241018
["ID","MTS","AMOUNT","RATE_DAILY","PERIOD"]
[340438812,1729245063759,-500.0,0.00013698,2]
[340438813,1729245063769,-177.17950995,0.00013698,2]
[340438814,1729245063779,-500.0,0.00013698,2]
[340438815,1729245063788,-500.0,0.00013698,2]
[340438816,1729245063798,-500.0,0.00013698,2]
[340438817,1729245063807,-500.0,0.00013698,2]
[340438818,1729245063817,-500.0,0.00013698,2]
[340438819,1729245063827,-599.02723477,0.00013698,2]
[340438820,1729245063836,-638.99,0.00013698,2]
[340438821,1729245063845,-500.0,0.00013698,2]
[340438822,1729245063854,-500.0,0.00013698,2]
[340438823,1729245063864,-500.0,0.00013698,2]
[340438824,1729245063873,-249.85554289,0.00013698,2]
[340438825,1729245063883,-620.45,0.00013698,2]
[340438826,1729245063894,-679.66,0.00013698,2]
[340438827,1729245063904,-500.0,0.00013698,2]
[340438828,1729245063914,-500.0,0.00013698,2]
[340438829,1729245063923,-500.0,0.00013698,2]
[340438830,1729245063933,-500.0,0.00013698,2]
[340438831,1729245063942,-1907.3,0.00013698,2]
[340438832,1729245063952,-500.0,0.00013698,2]
[340438833,1729245063961,-871.12,0.00013698,2]
[340438834,1729245063970,-1037.26,0.00013698,2]
[340438835,1729245063980,-795.76,0.00013698,2]
[340438836,1729245063990,-500.0,0.00013698,2]
[340438837,1729245064000,-500.0,0.00013698,2]
[340438838,1729245064011,-500.0,0.00013698,2]
[340438839,1729245064020,-500.0,0.00013698,2]
[340438840,1729245064031,-500.0,0.00013698,2]
[340438841,1729245064042,-500.0,0.00013698,2]
[340438842,1729245064051,-500.0,0.00013698,2]
[340438843,1729245064062,-500.0,0.00013698,2]
[340438844,1729245064071,-1051.27,0.00013698,2]
[340438845,1729245064080,-500.0,0.00013698,2]
[340438846,1729245064089,-500.0,0.00013698,2]
[340438847,1729245064100,-500.0,0.00013698,2]
[340438848,1729245064109,-500.0,0.00013698,2]
[340438849,1729245064118,-1007.24,0.00013698,2]
[340438850,1729245064128,-500.0,0.00013698,2]
[340438851,1729245064137,-500.0,0.00013698,2]
[340438852,1729245064148,-500.0,0.00013698,2]
[340438853,1729245064157,-735.79,0.00013698,2]
[340438854,1729245064166,-1162.07,0.00013698,2]
[340438855,1729245064176,-500.0,0.00013698,2]
[340438856,1729245064185,-500.0,0.00013698,2]
[340438857,1729245064195,-500.0,0.00013698,2]
[340438858,1729245064204,-372.35911542,0.00013698,2]
[340438859,1729245064214,-500.0,0.00013698,2]
[340438860,1729245064223,-507.7593106,0.00013698,2]
[340438861,1729245064233,-500.0,0.00013698,2]
[340438862,1729245064242,-1243.95,0.00013698,2]
[340438863,1729245064252,-500.0,0.00013698,2]
[340438864,1729245064262,-500.0,0.00013698,2]
[340438865,1729245064271,-500.0,0.00013698,2]
[340438866,1729245064281,-500.0,0.00013698,2]
[340438867,1729245064291,-786.11,0.00013698,2]
[340438868,1729245064301,-500.0,0.00013698,2]
[340438869,1729245064310,-500.0,0.00013698,2]
[340438870,1729245064319,-500.0,0.00013698,2]
[340438871,1729245064329,-500.0,0.00013698,2]
[340438872,1729245064338,-540.50192125,0.00013698,2]
[340438873,1729245064347,-676.43,0.00013698,2]
[340438874,1729245064357,-1523.03,0.00013698,2]
[340438875,1729245064366,-500.0,0.00013698,2]
[340438876,1729245064375,-1715.25,0.00013698,2]
[340438877,1729245064385,-500.0,0.00013698,2]
[340438878,1729245064394,-500.0,0.00013698,2]
[340438879,1729245064404,-500.0,0.00013698,2]
[340438880,1729245064413,-500.0,0.00013698,2]
[340438881,1729245064422,-500.0,0.00013698,2]
[340438882,1729245064431,-500.0,0.00013698,2]
[340438883,1729245064441,-500.0,0.00013698,2]
[340438884,1729245064450,-500.0,0.00013698,2]
[340438885,1729245064460,-500.0,0.00013698,2]
[340438886,1729245064471,-500.0,0.00013698,2]
[340438887,1729245064483,-500.0,0.00013698,2]
[340438888,1729245064493,-500.0,0.00013698,2]
[340438889,1729245064502,-500.0,0.00013698,2]
[340438890,1729245064512,-500.0,0.00013698,2]
[340438891,1729245064524,-500.0,0.00013698,2]
[340438892,1729245064534,-500.0,0.00013698,2]
[340438893,1729245064544,-1443.01,0.00013698,2]
[340438894,1729245064554,-500.0,0.00013698,2]
[340438895,1729245064564,-1076.09,0.00013698,2]
[340438896,1729245064574,-500.0,0.00013698,2]
[340438897,1729245064583,-500.0,0.00013698,2]
[340438898,1729245064593,-962.41,0.00013698,2]
[340438899,1729245064603,-500.0,0.00013698,2]
[340438900,1729245064613,-514.05337909,0.00013698,2]
[340438901,1729245064624,-500.0,0.00013698,2]
[340438902,1729245064633,-500.0,0.00013698,2]
[340438903,1729245064643,-895.35,0.00013698,2]
[340438904,1729245064652,-500.0,0.00013698,2]
[340438905,1729245064661,-497.29671909,0.00013698,2]
[340438906,1729245064671,-500.0,0.00013698,2]
[340438907,1729245064682,-500.0,0.00013698,2]
[340438908,1729245064693,-500.0,0.00013698,2]
[340438909,1729245064702,-500.0,0.00013698,2]
[340438910,1729245064712,-1226.14,0.00013698,2]
[340438911,1729245064721,-500.0,0.00013698,2]
[340438912,1729245064732,-500.0,0.00013698,2]
[340438913,1729245064743,-1037.27,0.00013698,2]
[340438914,1729245064753,-505.15737884,0.00013698,2]
[340438915,1729245064762,-500.0,0.00013698,2]
[340438916,1729245064771,-751.72,0.00013698,2]
[340438917,1729245064781,-500.0,0.00013698,2]
[340438918,1729245064790,-500.0,0.00013698,2]
[340438919,1729245064800,-1070.53,0.00013698,2]
[340438920,1729245064810,-500.0,0.00013698,2]
[340438921,1729245064820,-827.18,0.00013698,2]
[340438922,1729245064830,-500.0,0.00013698,2]
[340438923,1729245064839,-500.0,0.00013698,2]
[340438924,1729245064848,-500.0,0.00013698,2]
[340438925,1729245064857,-586.86,0.00013698,2]
[340438926,1729245064867,-500.0,0.00013698,2]
[340438927,1729245064877,-510.75986064,0.00013698,2]
[340438928,1729245064889,-970.57,0.00013698,2]
[340438929,1729245064898,-708.3,0.00013698,2]
[340438930,1729245064907,-501.11733426,0.00013698,2]
[340438931,1729245064916,-500.0,0.00013698,2]
[340438932,1729245064927,-500.0,0.00013698,2]
[340438933,1729245064939,-1460.22,0.00013698,2]
[340438934,1729245064950,-509.2118762,0.00013698,2]
[340438935,1729245064960,-1055.65,0.00013698,2]
[340438936,1729245064969,-604.42,0.00013698,2]
[340438937,1729245064979,-505.56499582,0.00013698,2]
[340438938,1729245064989,-500.0,0.00013698,2]
[340438939,1729245064998,-500.0,0.00013698,2]
[340438940,1729245065007,-500.0,0.00013698,2]
[340438941,1729245065017,-551.86,0.00013698,2]
[340438942,1729245065028,-1084.78,0.00013698,2]
[340438943,1729245065037,-500.0,0.00013698,2]
[340438944,1729245065047,-500.0,0.00013698,2]
[340438945,1729245065056,-859.29,0.00013698,2]
[340438946,1729245065066,-500.0,0.00013698,2]
[340438947,1729245065075,-500.0,0.00013698,2]
[340438948,1729245065084,-500.0,0.00013698,2]
[340438949,1729245065094,-1043.86,0.00013698,2]
[340438950,1729245065103,-500.0,0.00013698,2]
[340438951,1729245065113,-500.0,0.00013698,2]
[340438952,1729245065122,-574.55718076,0.00013698,2]
[340438953,1729245065132,-500.0,0.00013698,2]
[340438954,1729245065141,-500.0,0.00013698,2]
[340438955,1729245065151,-500.0,0.00013698,2]
[340438956,1729245065160,-500.0,0.00013698,2]
[340438957,1729245065170,-500.0,0.00013698,2]
[340438958,1729245065179,-345.0414057,0.00013698,2]
[340438959,1729245065189,-500.0,0.00013698,2]
[340438960,1729245065198,-781.11,0.00013698,2]
[340438961,1729245065208,-1193.67,0.00013698,2]
[340438962,1729245065218,-500.0,0.00013698,2]
[340438963,1729245065227,-500.0,0.00013698,2]
[340438964,1729245065237,-500.0,0.00013698,2]
[340438965,1729245065246,-500.0,0.00013698,2]
[340438966,1729245065260,-1153.0,0.00013698,2]
[340438967,1729245065279,-500.0,0.00013698,2]
[340438968,1729245065297,-964.73,0.00013698,2]
[340438969,1729245065309,-500.0,0.00013698,2]
[340438970,1729245065326,-500.0,0.00013698,2]
[340438971,1729245065340,-818.7,0.00013698,2]
[340438972,1729245065356,-881.33,0.00013698,2]
[340438973,1729245065372,-500.0,0.00013698,2]
[340438974,1729245065388,-500.0,0.00013698,2]
[340438975,1729245065402,-500.0,0.00013698,2]
[340438976,1729245065415,-661.9,0.00013698,2]
[340438977,1729245065431,-500.0,0.00013698,2]
[340438978,1729245065446,-500.0,0.00013698,2]
[340438979,1729245065458,-500.0,0.00013698,2]
[340438980,1729245065472,-500.0,0.00013698,2]
[340438981,1729245065487,-500.0,0.00013698,2]
[340438982,1729245065502,-500.0,0.00013698,2]
[340438983,1729245065518,-500.0,0.00013698,2]
[340438984,1729245065534,-500.0,0.00013698,2]
[340438985,1729245065548,-500.0,0.00013698,2]
[340438986,1729245065559,-1062.73,0.00013698,2]
[340438987,1729245065571,-500.0,0.00013698,2]
[340438988,1729245065586,-500.0,0.00013698,2]
[340438989,1729245065601,-500.0,0.00013698,2]
[340438990,1729245065613,-1206.32,0.00013698,2]
[340438991,1729245065627,-508.47405149,0.00013698,2]
[340438992,1729245065640,-500.0,0.00013698,2]
[340438993,1729245065652,-1395.24,0.00013698,2]
[340438994,1729245065666,-500.0,0.00013698,2]
[340438995,1729245065678,-1145.55,0.00013698,2]
[340438996,1729245065691,-500.0,0.00013698,2]
[340438997,1729245065703,-1054.58,0.00013698,2]
[340438998,1729245065715,-500.0,0.00013698,2]
[340438999,1729245065727,-500.0,0.00013698,2]
[340439000,1729245065740,-500.0,0.00013698,2]
[340439001,1729245065752,-500.0,0.00013698,2]
[340439002,1729245065764,-1000.0,0.00013698,2]
[340439003,1729245065776,-500.0,0.00013698,2]
[340439004,1729245065789,-500.0,0.00013698,2]
[340439005,1729245065802,-738.95,0.00013698,2]
[340439006,1729245065815,-1000.56,0.00013698,2]
[340439007,1729245065828,-500.0,0.00013698,2]
[340439008,1729245065841,-500.0,0.00013698,2]
[340439009,1729245065855,-500.0,0.00013698,2]
[340439010,1729245065867,-1096.22,0.00013698,2]
[340439011,1729245065879,-500.0,0.00013698,2]
[340439012,1729245065895,-500.0,0.00013698,2]
[340439013,1729245065907,-1069.71,0.00013698,2]
[340439014,1729245065920,-1397.58,0.00013698,2]
[340439015,1729245065933,-500.0,0.00013698,2]
[340439016,1729245065946,-500.0,0.00013698,2]
[340439017,1729245065958,-500.0,0.00013698,2]
[340439018,1729245065970,-500.0,0.00013698,2]
[340439019,1729245065983,-500.0,0.00013698,2]
[340439020,1729245065995,-1428.87,0.00013698,2]
[340439021,1729245066007,-500.0,0.00013698,2]
[340439022,1729245066020,-500.0,0.00013698,2]
[340439023,1729245066033,-500.0,0.00013698,2]
[340439024,1729245066045,-500.0,0.00013698,2]
[340439025,1729245066056,-895.03,0.00013698,2]
[340439026,1729245066068,-3993.05,0.00013698,2]
[340439027,1729245066080,-500.0,0.00013698,2]
[340439028,1729245066093,-500.0,0.00013698,2]
[340439029,1729245066106,-500.54291715,0.00013698,2]
[340439030,1729245066118,-500.0,0.00013698,2]
[340439031,1729245066131,-500.0,0.00013698,2]
[340439032,1729245066143,-1157.15,0.00013698,2]
[340439033,1729245066155,-500.0,0.00013698,2]
[340439034,1729245066167,-500.0,0.00013698,2]
[340439035,1729245066179,-500.0,0.00013698,2]
[340439036,1729245066192,-532.6,0.00013698,2]
[340439037,1729245066204,-1870.26,0.00013698,2]
[340439038,1729245066220,-866.7,0.00013698,2]
[340439039,1729245066232,-500.0,0.00013698,2]
[340439040,1729245066244,-730.02,0.00013698,2]
[340439041,1729245066256,-896.36,0.00013698,2]
[340439042,1729245066269,-500.0,0.00013698,2]
[340439043,1729245066281,-500.0,0.00013698,2]
[340439044,1729245066294,-500.0,0.00013698,2]
[340439045,1729245066306,-973.26,0.00013698,2]
[340439046,1729245066318,-654.42,0.00013698,2]
[340439047,1729245066330,-562.62,0.00013698,2]
[340439048,1729245066342,-500.0,0.00013698,2]
[340439049,1729245066354,-500.0,0.00013698,2]
[340439050,1729245066365,-500.0,0.00013698,2]
[340439051,1729245066377,-3473.75,0.00013698,2]
[340439052,1729245066389,-500.0,0.00013698,2]
[340439053,1729245066401,-500.0,0.00013698,2]
[340439054,1729245066413,-500.0,0.00013698,2]
[340439055,1729245066425,-500.0,0.00013698,2]
[340439056,1729245066436,-1013.32,0.00013698,2]
[340439057,1729245066448,-500.0,0.00013698,2]
[340439058,1729245066461,-884.31,0.00013698,2]
[340439059,1729245066473,-500.0,0.00013698,2]
[340439060,1729245066485,-663.59,0.00013698,2]
[340439061,1729245066497,-203.62853041,0.00013698,2]
[340439062,1729245066509,-500.0,0.00013698,2]
[340439063,1729245066522,-1044.47,0.00013698,2]
[340439064,1729245066535,-500.0,0.00013698,2]
[340439065,1729245066546,-500.0,0.00013698,2]
[340439066,1729245066558,-500.0,0.00013698,2]
[340439067,1729245066570,-1124.46,0.00013698,2]
[340439068,1729245066582,-500.0,0.00013698,2]
[340439069,1729245066594,-500.0,0.00013698,2]
[340439070,1729245066607,-500.0,0.00013698,2]
[340439071,1729245066619,-500.0,0.00013698,2]
[340439072,1729245066631,-681.61,0.00013698,2]
[340439073,1729245066645,-1167.43,0.00013698,2]
[340439074,1729245066657,-500.0,0.00013698,2]
[340439075,1729245066669,-500.0,0.00013698,2]
[340439076,1729245066682,-500.0,0.00013698,2]
[340439077,1729245066695,-1087.29,0.00013698,2]
[340439078,1729245066707,-500.0,0.00013698,2]
[340439079,1729245066719,-500.0,0.00013698,2]
[340439080,1729245066731,-765.82,0.00013698,2]
[340439081,1729245066743,-767.62,0.00013698,2]
[340439082,1729245066756,-500.0,0.00013698,2]
[340439083,1729245066768,-500.0,0.00013698,2]
[340439084,1729245066781,-1280.97,0.00013698,2]
[340439085,1729245066793,-500.0,0.00013698,2]
[340439086,1729245066805,-500.0,0.00013698,2]
[340439087,1729245066817,-500.0,0.00013698,2]
[340439088,1729245066830,-500.0,0.00013698,2]
[340439089,1729245066843,-1114.77,0.00013698,2]
[340439090,1729245066855,-1021.85,0.00013698,2]
[340439091,1729245066869,-1021.85,0.00013698,2]
[340439092,1729245066881,-1021.85,0.00013698,2]
[340439093,1729245066898,-507.75451437,0.00013698,2]
[340439094,1729245066910,-500.0,0.00013698,2]
[340439095,1729245066922,-1021.85,0.00013698,2]
[340439096,1729245066934,-1021.85,0.00013698,2]
[340439097,1729245066946,-1021.85,0.00013698,2]
[340439098,1729245066959,-1021.85,0.00013698,2]
[340439099,1729245066972,-1021.85,0.00013698,2]
[340439100,1729245066983,-1021.85,0.00013698,2]
[340439101,1729245066995,-1021.85,0.00013698,2]
[340439102,1729245067007,-1021.85,0.00013698,2]
[340439103,1729245067019,-1021.85,0.00013698,2]
[340439104,1729245067033,-1021.85,0.00013698,2]
[340439105,1729245067045,-1021.85,0.00013698,2]
[340439106,1729245067059,-1021.85,0.00013698,2]
[340439107,1729245067071,-1426.78,0.00013698,2]
[340439108,1729245067084,-1021.85,0.00013698,2]
[340439109,1729245067096,-1021.85,0.00013698,2]
[340439110,1729245067108,-1021.85,0.00013698,2]
[340439111,1729245067120,-500.0,0.00013698,2]
[340439112,1729245067131,-1021.85,0.00013698,2]
[340439113,1729245067144,-500.0,0.00013698,2]
[340439114,1729245067155,-1021.85,0.00013698,2]
[340439115,1729245067167,-500.0,0.00013698,2]
[340439116,1729245067179,-1021.85,0.00013698,2]
[340439117,1729245067191,-1021.85,0.00013698,2]
[340439118,1729245067203,-1021.85,0.00013698,2]
[340439119,1729245067215,-1021.85925495,0.00013698,2]
[340439120,1729245067227,-767.47,0.00013698,2]
[340439121,1729245067240,-500.0,0.00013698,2]
[340439122,1729245067253,-500.0,0.00013698,2]
[340439123,1729245067265,-500.0,0.00013698,2]
[340439124,1729245067279,-500.0,0.00013698,2]
[340439125,1729245067292,-500.0,0.00013698,2]
[340439126,1729245067304,-1411.42,0.00013698,2]
[340439127,1729245067578,-500.0,0.00013698,2]
[340439128,1729245067598,-500.0,0.00013698,2]
[340439129,1729245067608,-545.45,0.00013698,2]
[340439130,1729245067618,-517.29262057,0.00013698,2]
[340439131,1729245067627,-500.0,0.00013698,2]
[340439132,1729245067636,-500.0,0.00013698,2]
[340439133,1729245067646,-788.01,0.00013698,2]
[340439134,1729245067656,-500.0,0.00013698,2]
[340439135,1729245067665,-1021.55,0.00013698,2]
[340439136,1729245067674,-500.0,0.00013698,2]
[340439137,1729245067684,-1021.55,0.00013698,2]
[340439138,1729245067693,-1021.55,0.00013698,2]
[340439139,1729245067702,-500.0,0.00013698,2]
[340439140,1729245067712,-1021.55,0.00013698,2]
[340439141,1729245067722,-1021.55,0.00013698,2]
[340439142,1729245067732,-1021.55,0.00013698,2]
[340439143,1729245067742,-1021.55,0.00013698,2]
[340439144,1729245067752,-1021.55,0.00013698,2]
[340439145,1729245067761,-1021.55,0.00013698,2]
[340439146,1729245067770,-1021.55,0.00013698,2]
[340439147,1729245067781,-1021.55,0.00013698,2]
[340439148,1729245067791,-1021.55,0.00013698,2]
[340439149,1729245067800,-500.0,0.00013698,2]
[340439150,1729245067809,-1021.55,0.00013698,2]
[340439151,1729245067819,-1021.55,0.00013698,2]
[340439152,1729245067828,-1021.55,0.00013698,2]
[340439153,1729245067837,-1021.55,0.00013698,2]
[340439154,1729245067846,-545.96296049,0.00013698,2]
[340439155,1729245067856,-1021.55,0.00013698,2]
[340439156,1729245067865,-1021.55,0.00013698,2]
[340439157,1729245067874,-1021.55,0.00013698,2]
[340439158,1729245067884,-2395.03,0.00013698,2]
[340439159,1729245067898,-1021.55,0.00013698,2]
[340439160,1729245067908,-1021.55,0.00013698,2]
[340439161,1729245067917,-1021.55,0.00013698,2]
[340439162,1729245067926,-1021.55,0.00013698,2]
[340439163,1729245067937,-500.0,0.00013698,2]
[340439164,1729245067946,-1021.76620554,0.00013698,2]
[340439165,1729245067956,-500.0,0.00013698,2]
[340439166,1729245067966,-1150.17,0.00013698,2]
[340439167,1729245067975,-500.0,0.00013698,2]
[340439168,1729245067984,-536.26,0.00013698,2]
[340439169,1729245067994,-500.0,0.00013698,2]
[340439170,1729245068003,-500.0,0.00013698,2]
[340439171,1729245068012,-500.0,0.00013698,2]
[340439172,1729245068022,-500.0,0.00013698,2]
[340439173,1729245068032,-244.68788149,0.00013698,2]
[340439174,1729245068041,-500.0,0.00013698,2]
[340439175,1729245068051,-500.0,0.00013698,2]
[340439176,1729245068060,-500.0,0.00013698,2]
[340439177,1729245068069,-500.0,0.00013698,2]
[340439178,1729245068078,-500.0,0.00013698,2]
[340439179,1729245068087,-1909.08,0.00013698,2]
[340439180,1729245068096,-2396.15,0.00013698,2]
[340439181,1729245068105,-500.0,0.00013698,2]
[340439182,1729245068114,-856.8,0.00013698,2]
[340439183,1729245068123,-500.0,0.00013698,2]
[340439184,1729245068133,-500.0,0.00013698,2]
[340439185,1729245068142,-500.0,0.00013698,2]
[340439186,1729245068151,-500.0,0.00013698,2]
[340439187,1729245068160,-500.0,0.00013698,2]
[340439188,1729245068169,-500.0,0.00013698,2]
[340439189,1729245068179,-500.0,0.00013698,2]
[340439190,1729245068188,-500.0,0.00013698,2]
[340439191,1729245068197,-500.0,0.00013698,2]
[340439192,1729245068207,-500.0,0.00013698,2]
[340439193,1729245068217,-500.0,0.00013698,2]
[340439194,1729245068226,-500.0,0.00013698,2]
[340439195,1729245068235,-837.39,0.00013698,2]
[340439196,1729245068244,-1324.5,0.00013698,2]
[340439197,1729245068254,-500.0,0.00013698,2]
[340439198,1729245068263,-500.0,0.00013698,2]
[340439199,1729245068272,-500.0,0.00013698,2]
[340439200,1729245068282,-500.0,0.00013698,2]
[340439201,1729245068292,-500.0,0.00013698,2]
[340439202,1729245068301,-1031.32,0.00013698,2]
[340439203,1729245068310,-500.0,0.00013698,2]
[340439204,1729245068320,-500.0,0.00013698,2]
[340439205,1729245068329,-2844.57,0.00013698,2]
[340439206,1729245068338,-500.0,0.00013698,2]
[340439207,1729245068348,-500.0,0.00013698,2]
[340439208,1729245068357,-969.83,0.00013698,2]
[340439209,1729245068367,-603.41,0.00013698,2]
[340439210,1729245068376,-500.0,0.00013698,2]
[340439211,1729245068385,-500.0,0.00013698,2]
[340439212,1729245068395,-2511.79,0.00013698,2]
[340439213,1729245068404,-2957.21,0.00013698,2]
[340439214,1729245068413,-500.0,0.00013698,2]
[340439215,1729245068422,-500.0,0.00013698,2]
[340439216,1729245068431,-500.0,0.00013698,2]
[340439217,1729245068441,-500.0,0.00013698,2]
[340439218,1729245068450,-825.51,0.00013698,2]
[340439219,1729245068459,-500.0,0.00013698,2]
[340439220,1729245068468,-1311.74,0.00013698,2]
[340439221,1729245068478,-500.0,0.00013698,2]
[340439222,1729245068487,-443.568955,0.00013698,2]
[340439223,1729245068496,-1111.47,0.00013698,2]
[340439224,1729245068506,-500.0,0.00013698,2]
[340439225,1729245068515,-443.568955,0.00013698,2]
[340439226,1729245068524,-443.568955,0.00013698,2]
[340439227,1729245068534,-443.568955,0.00013698,2]
[340439228,1729245068543,-443.568955,0.00013698,2]
[340439229,1729245068552,-2679.77,0.00013698,2]
[340439230,1729245068562,-443.568955,0.00013698,2]
[340439231,1729245068571,-500.0,0.00013698,2]
[340439232,1729245068582,-500.0,0.00013698,2]
[340439233,1729245068591,-443.568955,0.00013698,2]
[340439234,1729245068601,-443.568955,0.00013698,2]
[340439235,1729245068610,-500.0,0.00013698,2]
[340439236,1729245068621,-443.568955,0.00013698,2]
[340439237,1729245068631,-1031.42,0.00013698,2]
[340439238,1729245068640,-443.568955,0.00013698,2]
[340439239,1729245068649,-500.0,0.00013698,2]
[340439240,1729245068658,-443.568955,0.00013698,2]
[340439241,1729245068668,-443.568959,0.00013698,2]
[340439242,1729245068677,-500.0,0.00013698,2]
[340439243,1729245068686,-12162.79,0.00013698,2]
[340439244,1729245068695,-500.0,0.00013698,2]
[340439245,1729245068705,-550.29,0.00013698,2]
[340439246,1729245068714,-930.26,0.00013698,2]
[340439247,1729245068724,-1897.2,0.00013698,2]
[340439248,1729245068734,-500.0,0.00013698,2]
[340439249,1729245068745,-521.43560986,0.00013698,2]
[340439250,1729245068756,-500.0,0.00013698,2]
[340439251,1729245068765,-500.0,0.00013698,2]
[340439252,1729245068774,-500.0,0.00013698,2]
[340439253,1729245068784,-500.0,0.00013698,2]
[340439254,1729245068793,-878.22,0.00013698,2]
[340439255,1729245068802,-957.88,0.00013698,2]
[340439256,1729245068812,-500.0,0.00013698,2]
[340439257,1729245068822,-500.0,0.00013698,2]
[340439258,1729245068831,-927.39,0.00013698,2]
[340439259,1729245068840,-937.09,0.00013698,2]
[340439260,1729245068850,-500.0,0.00013698,2]
[340439261,1729245068859,-1899.07,0.00013698,2]
[340439262,1729245068868,-500.0,0.00013698,2]
[340439263,1729245068877,-577.79951079,0.00013698,2]
[340439264,1729245068886,-500.0,0.00013698,2]
[340439265,1729245068896,-1019.75,0.00013698,2]
[340439266,1729245068908,-500.0,0.00013698,2]
[340439267,1729245068918,-500.0,0.00013698,2]
[340439268,1729245068927,-1189.31,0.00013698,2]
[340439269,1729245068936,-500.0,0.00013698,2]
[340439270,1729245068946,-1270.25,0.00013698,2]
[340439271,1729245068955,-500.0,0.00013698,2]
[340439272,1729245068964,-1139.43,0.00013698,2]
[340439273,1729245068975,-500.0,0.00013698,2]
[340439274,1729245068984,-500.0,0.00013698,2]
[340439275,1729245068994,-2950.09,0.00013698,2]
[340439276,1729245069003,-500.0,0.00013698,2]
[340439277,1729245069013,-6008.62,0.00013698,2]
[340439278,1729245069022,-500.0,0.00013698,2]
[340439279,1729245069031,-500.0,0.00013698,2]
[340439280,1729245069042,-733.35,0.00013698,2]
[340439281,1729245069052,-2190.69,0.00013698,2]
[340439282,1729245069061,-500.0,0.00013698,2]
[340439283,1729245069070,-500.0,0.00013698,2]
[340439284,1729245069079,-500.0,0.00013698,2]
[340439285,1729245069089,-500.0,0.00013698,2]
[340439286,1729245069099,-878.59,0.00013698,2]
[340439287,1729245069107,-500.0,0.00013698,2]
[340439288,1729245069117,-825.29,0.00013698,2]
[340439289,1729245069126,-500.0,0.00013698,2]
[340439290,1729245069135,-1028.34,0.00013698,2]
[340439291,1729245069145,-500.0,0.00013698,2]
[340439292,1729245069154,-533.101835,0.00013698,2]
[340439293,1729245069164,-1201.91,0.00013698,2]
[340439294,1729245069174,-500.0,0.00013698,2]
[340439295,1729245069183,-500.0,0.00013698,2]
[340439296,1729245069192,-500.0,0.00013698,2]
[340439297,1729245069202,-524.27472727,0.00013698,2]
[340439298,1729245069212,-500.0,0.00013698,2]
[340439299,1729245069220,-1749.48,0.00013698,2]
[340439300,1729245069230,-500.0,0.00013698,2]
[340439301,1729245069239,-966.84,0.00013698,2]
[340439302,1729245069248,-500.0,0.00013698,2]
[340439303,1729245069257,-500.0,0.00013698,2]
[340439304,1729245069266,-500.0,0.00013698,2]
[340439305,1729245069276,-881.76,0.00013698,2]
[340439306,1729245069290,-151.0,0.00013698,2]
[340439307,1729245069299,-151.0,0.00013698,2]
[340439308,1729245069314,-151.0,0.00013698,2]
[340439309,1729245069322,-500.0,0.00013698,2]
[340439310,1729245069332,-1769.45,0.00013698,2]
[340439311,1729245069341,-500.0,0.00013698,2]